[Event "Titled Tuesday Blitz August 31 2021"]
[White "Tokhirjonova, Gulrukhbegim"]
[Black "Mekhitarian, Krikor Sevag"]
[WhiteFideId "14203626"]
[BlackFideId "2107660"]
[WhiteElo "2539"]
[BlackElo "2759"]
[Result "1-0"]
[Round "03"]
[TimeControl "180+1"]
[Date "2021.08.31"]
[WhiteClock "0:00:35"]
[BlackClock "0:00:01"]

1. e4 {[%clk 0:02:59]}  c5 {[%clk 0:02:58]} 2. Nf3 {[%clk 0:02:59]}  g6 {[%clk 0:02:57]} 3. d4 {[%clk 0:02:59]}  cxd4 {[%clk 0:02:58]} 4. Nxd4 {[%clk 0:03:00]}  Nc6 {[%clk 0:02:58]} 5. Nc3 {[%clk 0:03:00]}  Bg7 {[%clk 0:02:58]} 6. Be3 {[%clk 0:03:00]}  Nf6 {[%clk 0:02:58]} 7. Bc4 {[%clk 0:02:58]}  O-O {[%clk 0:02:54]} 8. f3 {[%clk 0:02:58]}  Qb6 {[%clk 0:02:42]} 9. Bb3 {[%clk 0:02:45]}  Nxe4 {[%clk 0:02:36]} 10. Nd5 {[%clk 0:02:44]}  Qa5+ {[%clk 0:02:35]} 11. c3 {[%clk 0:02:40]}  Nc5 {[%clk 0:02:35]} 12. Nxc6 {[%clk 0:02:36]}  dxc6 {[%clk 0:02:34]} 13. Nxe7+ {[%clk 0:02:36]}  Kh8 {[%clk 0:02:34]} 14. Nxc8 {[%clk 0:02:36]}  Raxc8 {[%clk 0:02:33]} 15. O-O {[%clk 0:02:36]}  Rce8 {[%clk 0:01:58]} 16. Bd4 {[%clk 0:02:33]}  Rd8 {[%clk 0:01:45]} 17. Bxg7+ {[%clk 0:02:23]}  Kxg7 {[%clk 0:01:46]} 18. Qc2 {[%clk 0:02:24]}  Qb6 {[%clk 0:01:41]} 19. Kh1 {[%clk 0:02:23]}  Nd3 {[%clk 0:01:01]} 20. Rad1 {[%clk 0:02:15]}  Qe3 {[%clk 0:00:53]} 21. Qd2 {[%clk 0:02:07]}  Qxd2 {[%clk 0:00:29]} 22. Rxd2 {[%clk 0:02:07]}  Nc5 {[%clk 0:00:26]} 23. Rfd1 {[%clk 0:02:06]}  Rxd2 {[%clk 0:00:24]} 24. Rxd2 {[%clk 0:02:06]}  a5 {[%clk 0:00:25]} 25. Kg1 {[%clk 0:02:06]}  Kf6 {[%clk 0:00:20]} 26. Kf2 {[%clk 0:02:04]}  Ke7 {[%clk 0:00:20]} 27. Bc2 {[%clk 0:02:05]}  a4 {[%clk 0:00:17]} 28. Ke3 {[%clk 0:02:04]}  b5 {[%clk 0:00:16]} 29. Rd4 {[%clk 0:02:00]}  Ne6 {[%clk 0:00:15]} 30. Re4 {[%clk 0:01:59]}  Rd8 {[%clk 0:00:14]} 31. a3 {[%clk 0:01:59]}  Kd6 {[%clk 0:00:13]} 32. f4 {[%clk 0:01:55]}  f5 {[%clk 0:00:12]} 33. Re5 {[%clk 0:01:55]}  Nc7 {[%clk 0:00:10]} 34. c4 {[%clk 0:01:45]}  Rb8 {[%clk 0:00:04]} 35. c5+ {[%clk 0:01:43]}  Kd7 {[%clk 0:00:04]} 36. g3 {[%clk 0:01:42]}  Re8 {[%clk 0:00:04]} 37. Kd4 {[%clk 0:01:42]}  Rd8 {[%clk 0:00:01]} 38. Bd3 {[%clk 0:01:35]}  Ne6+ {[%clk 0:00:02]} 39. Kc3 {[%clk 0:01:34]}  Re8 {[%clk 0:00:02]} 40. Be2 {[%clk 0:01:32]}  Nc7 {[%clk 0:00:02]} 41. Kd4 {[%clk 0:01:29]}  Rd8 {[%clk 0:00:01]} 42. Bf3 {[%clk 0:01:29]}  Ne6+ {[%clk 0:00:02]} 43. Kc3 {[%clk 0:01:29]}  Nc7 {[%clk 0:00:03]} 44. Kb4 {[%clk 0:01:26]}  Rb8 {[%clk 0:00:03]} 45. Ka5 {[%clk 0:01:25]}  b4 {[%clk 0:00:03]} 46. Kxa4 {[%clk 0:01:24]}  bxa3 {[%clk 0:00:03]} 47. bxa3 {[%clk 0:01:24]}  Ra8+ {[%clk 0:00:04]} 48. Kb3 {[%clk 0:01:24]}  Rb8+ {[%clk 0:00:05]} 49. Kc4 {[%clk 0:01:23]}  Ra8 {[%clk 0:00:05]} 50. Re3 {[%clk 0:01:23]}  Ra4+ {[%clk 0:00:05]} 51. Kb3 {[%clk 0:01:21]}  Rd4 {[%clk 0:00:05]} 52. Kc3 {[%clk 0:01:21]}  Nb5+ {[%clk 0:00:05]} 53. Kc2 {[%clk 0:01:21]}  Rc4+ {[%clk 0:00:03]} 54. Kb2 {[%clk 0:01:18]}  Rxc5 {[%clk 0:00:04]} 55. a4 {[%clk 0:01:18]}  Nd6 {[%clk 0:00:04]} 56. Rc3 {[%clk 0:01:13]}  Rxc3 {[%clk 0:00:02]} 57. Kxc3 {[%clk 0:01:12]}  Kc7 {[%clk 0:00:03]} 58. a5 {[%clk 0:01:09]}  Nb7 {[%clk 0:00:02]} 59. Kb4 {[%clk 0:01:10]}  Nd6 {[%clk 0:00:02]} 60. Kc5 {[%clk 0:00:58]}  Nb7+ {[%clk 0:00:02]} 61. Kb4 {[%clk 0:00:57]}  Nd6 {[%clk 0:00:03]} 62. Be2 {[%clk 0:00:54]}  h6 {[%clk 0:00:03]} 63. Bd3 {[%clk 0:00:50]}  g5 {[%clk 0:00:02]} 64. fxg5 {[%clk 0:00:49]}  hxg5 {[%clk 0:00:03]} 65. h4 {[%clk 0:00:49]}  f4 {[%clk 0:00:04]} 66. hxg5 {[%clk 0:00:37]}  fxg3 {[%clk 0:00:03]} 67. Bf1 {[%clk 0:00:38]}  Nf7 {[%clk 0:00:01]} 68. g6 {[%clk 0:00:37]}  Nh6 {[%clk 0:00:02]} 69. g7 {[%clk 0:00:36]}  Kb7 {[%clk 0:00:01]} 70. Kc5 {[%clk 0:00:36]}  Kc7 {[%clk 0:00:01]} 71. a6 {[%clk 0:00:35]} 1-0


[Site "https://www.chess.com"]

[Event "Titled Tuesday Blitz August 31 2021"]
[White "Trent, Lawrence"]
[Black "Le, Tuan Minh"]
[WhiteFideId "408638"]
[BlackFideId "12401153"]
[WhiteElo "2474"]
[BlackElo "2450"]
[Result "0-1"]
[Round "03"]
[TimeControl "180+1"]
[Date "2021.08.31"]
[WhiteClock "0:00:40"]
[BlackClock "0:00:30"]

1. e4 {[%clk 0:03:00]}  e5 {[%clk 0:02:51]} 2. Nf3 {[%clk 0:03:00]}  d5 {[%clk 0:02:49]} 3. c3 {[%clk 0:02:52]}  Nf6 {[%clk 0:02:38]} 4. d4 {[%clk 0:02:51]}  dxe4 {[%clk 0:02:27]} 5. Nxe5 {[%clk 0:02:50]}  Bd6 {[%clk 0:02:24]} 6. Nc4 {[%clk 0:02:41]}  h6 {[%clk 0:02:21]} 7. Be2 {[%clk 0:02:40]}  O-O {[%clk 0:02:21]} 8. O-O {[%clk 0:02:35]}  Nc6 {[%clk 0:02:21]} 9. Nxd6 {[%clk 0:02:31]}  Qxd6 {[%clk 0:02:22]} 10. Na3 {[%clk 0:02:30]}  Bf5 {[%clk 0:02:13]} 11. Nc4 {[%clk 0:02:28]}  Qe6 {[%clk 0:02:02]} 12. Ne3 {[%clk 0:02:21]}  Ne7 {[%clk 0:01:46]} 13. Qb3 {[%clk 0:02:19]}  Qc8 {[%clk 0:01:46]} 14. f3 {[%clk 0:02:14]}  Be6 {[%clk 0:01:39]} 15. c4 {[%clk 0:02:13]}  exf3 {[%clk 0:01:20]} 16. Bxf3 {[%clk 0:02:12]}  c6 {[%clk 0:01:20]} 17. Qc3 {[%clk 0:02:09]}  Rd8 {[%clk 0:01:18]} 18. b3 {[%clk 0:02:09]}  Qc7 {[%clk 0:00:59]} 19. Bb2 {[%clk 0:02:07]}  Rd7 {[%clk 0:00:59]} 20. Kh1 {[%clk 0:01:45]}  Rad8 {[%clk 0:00:58]} 21. d5 {[%clk 0:01:42]}  cxd5 {[%clk 0:00:56]} 22. Bxd5 {[%clk 0:01:16]}  Nexd5 {[%clk 0:00:43]} 23. Nxd5 {[%clk 0:01:16]}  Bxd5 {[%clk 0:00:44]} 24. Rxf6 {[%clk 0:01:15]}  gxf6 {[%clk 0:00:38]} 25. Qh3 {[%clk 0:00:40]}  Be6 {[%clk 0:00:32]} 26. Qh5 {[%clk 0:00:40]}  Qf4 {[%clk 0:00:30]} 0-1


[Site "https://www.chess.com"]

[Event "Titled Tuesday Blitz August 31 2021"]
[White "Urjubdshzirov, Erdni"]
[Black "Shkapenko, Pavel"]
[WhiteFideId "4186451"]
[BlackFideId "4151933"]
[WhiteElo "2418"]
[BlackElo "2714"]
[Result "0-1"]
[Round "03"]
[TimeControl "180+1"]
[Date "2021.08.31"]
[WhiteClock "0:02:02"]
[BlackClock "0:02:23"]

1. e4 {[%clk 0:03:00]}  e5 {[%clk 0:02:56]} 2. Nf3 {[%clk 0:03:01]}  Nc6 {[%clk 0:02:50]} 3. Bb5 {[%clk 0:03:00]}  Bc5 {[%clk 0:02:49]} 4. O-O {[%clk 0:03:00]}  d6 {[%clk 0:02:48]} 5. h3 {[%clk 0:02:59]}  Ne7 {[%clk 0:02:47]} 6. c3 {[%clk 0:02:58]}  Bd7 {[%clk 0:02:44]} 7. d4 {[%clk 0:02:56]}  Bb6 {[%clk 0:02:44]} 8. d5 {[%clk 0:02:47]}  Nb8 {[%clk 0:02:43]} 9. Bxd7+ {[%clk 0:02:46]}  Nxd7 {[%clk 0:02:43]} 10. Nfd2 {[%clk 0:02:45]}  O-O {[%clk 0:02:42]} 11. Nc4 {[%clk 0:02:43]}  f5 {[%clk 0:02:35]} 12. Nxb6 {[%clk 0:02:34]}  axb6 {[%clk 0:02:34]} 13. f3 {[%clk 0:02:24]}  fxe4 {[%clk 0:02:30]} 14. fxe4 {[%clk 0:02:23]}  Rxf1+ {[%clk 0:02:30]} 15. Qxf1 {[%clk 0:02:23]}  Nc5 {[%clk 0:02:31]} 16. Qf3 {[%clk 0:02:16]}  Nb3 {[%clk 0:02:29]} 17. Bg5 {[%clk 0:02:03]}  Nxa1 {[%clk 0:02:25]} 18. Qg4 {[%clk 0:02:02]}  Qc8 {[%clk 0:02:23]} 0-1


[Site "https://www.chess.com"]

[Event "Titled Tuesday Blitz August 31 2021"]
[White "Vivas Zamora, Fabian Ernesto"]
[Black "Wong, Yinn Long"]
[WhiteFideId "3902480"]
[BlackFideId "5707684"]
[WhiteElo "2369"]
[BlackElo "2710"]
[Result "0-1"]
[Round "03"]
[TimeControl "180+1"]
[Date "2021.08.31"]
[WhiteClock "0:00:01"]
[BlackClock "0:00:24"]

1. c4 {[%clk 0:02:52]}  c5 {[%clk 0:02:59]} 2. Nf3 {[%clk 0:02:52]}  g6 {[%clk 0:02:59]} 3. d4 {[%clk 0:02:51]}  cxd4 {[%clk 0:03:00]} 4. Nxd4 {[%clk 0:02:51]}  Nc6 {[%clk 0:03:00]} 5. Nc2 {[%clk 0:02:50]}  Bg7 {[%clk 0:02:58]} 6. e4 {[%clk 0:02:50]}  Nf6 {[%clk 0:02:50]} 7. Nc3 {[%clk 0:02:49]}  O-O {[%clk 0:02:50]} 8. Be2 {[%clk 0:02:50]}  d6 {[%clk 0:02:51]} 9. O-O {[%clk 0:02:50]}  Nd7 {[%clk 0:02:51]} 10. Bd2 {[%clk 0:02:41]}  a5 {[%clk 0:02:51]} 11. Rc1 {[%clk 0:02:22]}  Nc5 {[%clk 0:02:46]} 12. f3 {[%clk 0:02:11]}  f5 {[%clk 0:02:46]} 13. exf5 {[%clk 0:01:50]}  Bxf5 {[%clk 0:02:46]} 14. Ne3 {[%clk 0:01:48]}  Nd4 {[%clk 0:02:33]} 15. Nxf5 {[%clk 0:01:43]}  Nxf5 {[%clk 0:02:33]} 16. Re1 {[%clk 0:01:07]}  Bd4+ {[%clk 0:02:24]} 17. Kh1 {[%clk 0:01:07]}  e5 {[%clk 0:02:03]} 18. Ne4 {[%clk 0:00:49]}  Qh4 {[%clk 0:01:36]} 19. Bg5 {[%clk 0:00:29]}  Ng3+ {[%clk 0:01:17]} 20. Nxg3 {[%clk 0:00:29]}  Qxg5 {[%clk 0:01:17]} 21. Ne4 {[%clk 0:00:22]}  Nxe4 {[%clk 0:01:16]} 22. fxe4 {[%clk 0:00:22]}  Rf2 {[%clk 0:01:14]} 23. Bf3 {[%clk 0:00:17]}  Rf8 {[%clk 0:01:04]} 24. Rg1 {[%clk 0:00:03]}  Rd2 {[%clk 0:01:00]} 25. Qe1 {[%clk 0:00:02]}  Bf2 {[%clk 0:00:56]} 26. Qf1 {[%clk 0:00:01]}  Bxg1 {[%clk 0:00:51]} 27. Qxg1 {[%clk 0:00:02]}  Rxb2 {[%clk 0:00:52]} 28. Rd1 {[%clk 0:00:02]}  Rd2 {[%clk 0:00:52]} 29. Rxd2 {[%clk 0:00:02]}  Qxd2 {[%clk 0:00:52]} 30. h3 {[%clk 0:00:02]}  Qxa2 {[%clk 0:00:48]} 31. Qb6 {[%clk 0:00:02]}  Qxc4 {[%clk 0:00:42]} 32. Qxd6 {[%clk 0:00:01]}  Qc1+ {[%clk 0:00:35]} 33. Kh2 {[%clk 0:00:01]}  Qf4+ {[%clk 0:00:36]} 34. Kh1 {[%clk 0:00:02]}  a4 {[%clk 0:00:27]} 35. Qd5+ {[%clk 0:00:02]}  Kg7 {[%clk 0:00:27]} 36. Qxb7+ {[%clk 0:00:01]}  Rf7 {[%clk 0:00:28]} 37. Qa6 {[%clk 0:00:02]}  Qc1+ {[%clk 0:00:28]} 38. Kh2 {[%clk 0:00:01]}  a3 {[%clk 0:00:29]} 39. Qa5 {[%clk 0:00:01]}  Qf4+ {[%clk 0:00:24]} 0-1


[Site "https://www.chess.com"]

[Event "Titled Tuesday Blitz August 31 2021"]
[White "Yanchenko, Roman"]
[Black "Espinosa Veloz, Ermes"]
[WhiteFideId "4137329"]
[BlackFideId "3507424"]
[WhiteElo "2514"]
[BlackElo "2333"]
[Result "1-0"]
[Round "03"]
[TimeControl "180+1"]
[Date "2021.08.31"]
[WhiteClock "0:00:04"]
[BlackClock "0:00:01"]

1. d4 {[%clk 0:03:00]}  Nf6 {[%clk 0:02:58]} 2. Nf3 {[%clk 0:02:59]}  g6 {[%clk 0:02:59]} 3. Bf4 {[%clk 0:02:57]}  Bg7 {[%clk 0:02:59]} 4. e3 {[%clk 0:02:54]}  d6 {[%clk 0:02:58]} 5. c4 {[%clk 0:02:54]}  O-O {[%clk 0:02:55]} 6. Nc3 {[%clk 0:02:53]}  c5 {[%clk 0:02:55]} 7. Be2 {[%clk 0:02:52]}  cxd4 {[%clk 0:02:49]} 8. exd4 {[%clk 0:02:52]}  d5 {[%clk 0:02:48]} 9. O-O {[%clk 0:02:50]}  Nc6 {[%clk 0:02:48]} 10. h3 {[%clk 0:02:50]}  Be6 {[%clk 0:02:44]} 11. c5 {[%clk 0:02:50]}  b6 {[%clk 0:02:31]} 12. Bb5 {[%clk 0:02:47]}  Bd7 {[%clk 0:02:28]} 13. Ne5 {[%clk 0:02:07]}  Nxe5 {[%clk 0:02:08]} 14. dxe5 {[%clk 0:02:07]}  Nh5 {[%clk 0:02:08]} 15. Bxd7 {[%clk 0:02:06]}  Qxd7 {[%clk 0:01:57]} 16. Bh2 {[%clk 0:02:01]}  Bh6 {[%clk 0:01:13]} 17. Qxd5 {[%clk 0:01:31]}  Rad8 {[%clk 0:01:12]} 18. Qxd7 {[%clk 0:01:23]}  Rxd7 {[%clk 0:01:13]} 19. cxb6 {[%clk 0:01:23]}  axb6 {[%clk 0:01:14]} 20. Rad1 {[%clk 0:01:23]}  Rfd8 {[%clk 0:01:12]} 21. Rxd7 {[%clk 0:01:22]}  Rxd7 {[%clk 0:01:12]} 22. Rd1 {[%clk 0:01:21]}  Rxd1+ {[%clk 0:01:08]} 23. Nxd1 {[%clk 0:01:22]}  Nf4 {[%clk 0:01:07]} 24. Nc3 {[%clk 0:01:15]}  Nd3 {[%clk 0:01:05]} 25. Nd5 {[%clk 0:01:15]}  Nxb2 {[%clk 0:01:02]} 26. Nxb6 {[%clk 0:01:10]}  Kf8 {[%clk 0:01:01]} 27. a4 {[%clk 0:01:09]}  Nd3 {[%clk 0:00:56]} 28. a5 {[%clk 0:00:45]}  Nc5 {[%clk 0:00:55]} 29. f4 {[%clk 0:00:43]}  Ke8 {[%clk 0:00:52]} 30. Kf1 {[%clk 0:00:39]}  f6 {[%clk 0:00:51]} 31. exf6 {[%clk 0:00:25]}  exf6 {[%clk 0:00:52]} 32. Bg1 {[%clk 0:00:21]}  Na6 {[%clk 0:00:51]} 33. g3 {[%clk 0:00:20]}  Kd8 {[%clk 0:00:46]} 34. Bd4 {[%clk 0:00:19]}  f5 {[%clk 0:00:45]} 35. Ke2 {[%clk 0:00:19]}  Kc7 {[%clk 0:00:44]} 36. Kd3 {[%clk 0:00:19]}  Kc6 {[%clk 0:00:44]} 37. Kc4 {[%clk 0:00:20]}  Bf8 {[%clk 0:00:33]} 38. Nd5 {[%clk 0:00:20]}  Bd6 {[%clk 0:00:32]} 39. Bb6 {[%clk 0:00:18]}  h6 {[%clk 0:00:31]} 40. Nf6 {[%clk 0:00:15]}  g5 {[%clk 0:00:29]} 41. fxg5 {[%clk 0:00:13]}  hxg5 {[%clk 0:00:30]} 42. g4 {[%clk 0:00:11]}  Be5 {[%clk 0:00:29]} 43. Nd5 {[%clk 0:00:09]}  f4 {[%clk 0:00:25]} 44. Nb4+ {[%clk 0:00:07]}  Nxb4 {[%clk 0:00:24]} 45. Kxb4 {[%clk 0:00:08]}  f3 {[%clk 0:00:20]} 46. Bf2 {[%clk 0:00:08]}  Bd6+ {[%clk 0:00:19]} 47. Ka4 {[%clk 0:00:08]}  Bc5 {[%clk 0:00:17]} 48. Bg3 {[%clk 0:00:03]}  f2 {[%clk 0:00:14]} 49. Bxf2 {[%clk 0:00:03]}  Bxf2 {[%clk 0:00:15]} 50. Kb4 {[%clk 0:00:04]}  Kd5 {[%clk 0:00:11]} 51. Kb5 {[%clk 0:00:04]}  Ke4 {[%clk 0:00:11]} 52. Kc6 {[%clk 0:00:04]}  Kf4 {[%clk 0:00:10]} 53. Kd5 {[%clk 0:00:03]}  Kg3 {[%clk 0:00:10]} 54. Ke4 {[%clk 0:00:03]}  Kxh3 {[%clk 0:00:09]} 55. Kf5 {[%clk 0:00:04]}  Ba7 {[%clk 0:00:10]} 56. Kxg5 {[%clk 0:00:04]}  Kg3 {[%clk 0:00:05]} 57. Kf5 {[%clk 0:00:03]}  Kh4 {[%clk 0:00:04]} 58. a6 {[%clk 0:00:02]}  Be3 {[%clk 0:00:01]} 59. g5 {[%clk 0:00:03]}  Kh5 {[%clk 0:00:01]} 60. g6 {[%clk 0:00:03]}  Kh6 {[%clk 0:00:01]} 61. Kf6 {[%clk 0:00:04]}  Bd4+ {[%clk 0:00:01]} 62. Kf7 {[%clk 0:00:04]} 1-0


[Site "https://www.chess.com"]

[Event "Titled Tuesday Blitz August 31 2021"]
[White "Zemach, Roee"]
[Black "Gabrielian, Artur"]
[WhiteFideId "2818531"]
[BlackFideId "4131002"]
[WhiteElo "2131"]
[BlackElo "2513"]
[Result "1-0"]
[Round "03"]
[TimeControl "180+1"]
[Date "2021.08.31"]
[WhiteClock "0:00:11"]
[BlackClock "0:00:04"]

1. d4 {[%clk 0:02:59]}  Nf6 {[%clk 0:02:57]} 2. Nf3 {[%clk 0:02:59]}  e6 {[%clk 0:02:57]} 3. Bf4 {[%clk 0:02:59]}  d5 {[%clk 0:02:56]} 4. e3 {[%clk 0:02:59]}  c5 {[%clk 0:02:56]} 5. c3 {[%clk 0:02:59]}  Bd6 {[%clk 0:02:55]} 6. Bg3 {[%clk 0:02:59]}  O-O {[%clk 0:02:55]} 7. Bd3 {[%clk 0:02:59]}  Qc7 {[%clk 0:02:55]} 8. O-O {[%clk 0:02:58]}  b6 {[%clk 0:02:54]} 9. Nbd2 {[%clk 0:02:56]}  Ba6 {[%clk 0:02:52]} 10. Bxa6 {[%clk 0:02:54]}  Nxa6 {[%clk 0:02:52]} 11. Qe2 {[%clk 0:02:48]}  Nb8 {[%clk 0:02:52]} 12. dxc5 {[%clk 0:02:48]}  bxc5 {[%clk 0:02:51]} 13. e4 {[%clk 0:02:48]}  Bxg3 {[%clk 0:02:50]} 14. hxg3 {[%clk 0:02:48]}  Nc6 {[%clk 0:02:49]} 15. exd5 {[%clk 0:02:20]}  exd5 {[%clk 0:02:47]} 16. Nb3 {[%clk 0:02:21]}  Qb6 {[%clk 0:02:32]} 17. Qe3 {[%clk 0:02:07]}  c4 {[%clk 0:02:25]} 18. Qxb6 {[%clk 0:02:02]}  axb6 {[%clk 0:02:25]} 19. Nbd4 {[%clk 0:02:02]}  Nxd4 {[%clk 0:02:25]} 20. Nxd4 {[%clk 0:02:03]}  Ne4 {[%clk 0:02:20]} 21. Rfd1 {[%clk 0:01:51]}  Nf6 {[%clk 0:01:54]} 22. a3 {[%clk 0:01:42]}  Rfe8 {[%clk 0:01:52]} 23. f3 {[%clk 0:01:34]}  h5 {[%clk 0:01:52]} 24. Rd2 {[%clk 0:01:29]}  g6 {[%clk 0:01:51]} 25. Kf2 {[%clk 0:01:26]}  Kg7 {[%clk 0:01:51]} 26. Rad1 {[%clk 0:01:26]}  Rh8 {[%clk 0:01:50]} 27. Nc2 {[%clk 0:01:19]}  Ra5 {[%clk 0:01:29]} 28. Ne3 {[%clk 0:01:17]}  Rb5 {[%clk 0:01:23]} 29. Rc2 {[%clk 0:00:55]}  Re8 {[%clk 0:01:20]} 30. Rd4 {[%clk 0:00:52]}  Re5 {[%clk 0:01:15]} 31. Rcd2 {[%clk 0:00:52]}  Kf8 {[%clk 0:01:14]} 32. Rc2 {[%clk 0:00:37]}  Ra5 {[%clk 0:01:13]} 33. Rd1 {[%clk 0:00:36]}  Ra8 {[%clk 0:01:06]} 34. Rcd2 {[%clk 0:00:37]}  Rae8 {[%clk 0:01:06]} 35. Nc2 {[%clk 0:00:32]}  g5 {[%clk 0:01:02]} 36. Nd4 {[%clk 0:00:31]}  g4 {[%clk 0:00:56]} 37. Nc6 {[%clk 0:00:31]}  R5e6 {[%clk 0:00:56]} 38. Nb4 {[%clk 0:00:30]}  Re5 {[%clk 0:00:48]} 39. Nc6 {[%clk 0:00:29]}  Rf5 {[%clk 0:00:49]} 40. Nd4 {[%clk 0:00:29]}  Ne4+ {[%clk 0:00:48]} 41. Kg1 {[%clk 0:00:25]}  Nxd2 {[%clk 0:00:32]} 42. Nxf5 {[%clk 0:00:25]}  Nb3 {[%clk 0:00:22]} 43. fxg4 {[%clk 0:00:23]}  hxg4 {[%clk 0:00:22]} 44. Rxd5 {[%clk 0:00:23]}  f6 {[%clk 0:00:22]} 45. Rd6 {[%clk 0:00:19]}  Re1+ {[%clk 0:00:20]} 46. Kf2 {[%clk 0:00:19]}  Rb1 {[%clk 0:00:20]} 47. Rxf6+ {[%clk 0:00:19]}  Ke8 {[%clk 0:00:20]} 48. Rxb6 {[%clk 0:00:20]}  Rxb2+ {[%clk 0:00:20]} 49. Kg1 {[%clk 0:00:20]}  Rc2 {[%clk 0:00:20]} 50. Nd6+ {[%clk 0:00:19]}  Kd7 {[%clk 0:00:19]} 51. Nxc4 {[%clk 0:00:20]}  Rxc3 {[%clk 0:00:19]} 52. Ne5+ {[%clk 0:00:20]}  Kc7 {[%clk 0:00:19]} 53. Rb4 {[%clk 0:00:21]}  Nd2 {[%clk 0:00:19]} 54. Nxg4 {[%clk 0:00:20]}  Rxa3 {[%clk 0:00:19]} 55. Rf4 {[%clk 0:00:20]}  Kd6 {[%clk 0:00:18]} 56. Kh2 {[%clk 0:00:20]}  Ke6 {[%clk 0:00:18]} 57. Rf2 {[%clk 0:00:16]}  Ne4 {[%clk 0:00:17]} 58. Rf3 {[%clk 0:00:17]}  Ra2 {[%clk 0:00:15]} 59. Ne3 {[%clk 0:00:15]}  Ng5 {[%clk 0:00:14]} 60. Rf4 {[%clk 0:00:15]}  Nf7 {[%clk 0:00:14]} 61. Re4+ {[%clk 0:00:15]}  Kf6 {[%clk 0:00:14]} 62. Rf4+ {[%clk 0:00:16]}  Kg7 {[%clk 0:00:14]} 63. g4 {[%clk 0:00:16]}  Ng5 {[%clk 0:00:14]} 64. Nf5+ {[%clk 0:00:16]}  Kg6 {[%clk 0:00:14]} 65. Ng3 {[%clk 0:00:17]}  Kg7 {[%clk 0:00:12]} 66. Rc4 {[%clk 0:00:17]}  Kf6 {[%clk 0:00:11]} 67. Rc6+ {[%clk 0:00:17]}  Kf7 {[%clk 0:00:11]} 68. Nf5 {[%clk 0:00:15]}  Ne4 {[%clk 0:00:11]} 69. Nd6+ {[%clk 0:00:15]}  Nxd6 {[%clk 0:00:11]} 70. Rxd6 {[%clk 0:00:16]}  Ra3 {[%clk 0:00:11]} 71. g3 {[%clk 0:00:16]}  Kg7 {[%clk 0:00:11]} 72. Kh3 {[%clk 0:00:16]}  Ra5 {[%clk 0:00:12]} 73. Kh4 {[%clk 0:00:16]}  Rb5 {[%clk 0:00:12]} 74. g5 {[%clk 0:00:16]}  Rb1 {[%clk 0:00:12]} 75. Kh5 {[%clk 0:00:16]}  Rh1+ {[%clk 0:00:12]} 76. Kg4 {[%clk 0:00:16]}  Ra1 {[%clk 0:00:13]} 77. Rc6 {[%clk 0:00:16]}  Rb1 {[%clk 0:00:13]} 78. Rc4 {[%clk 0:00:14]}  Ra1 {[%clk 0:00:12]} 79. Rf4 {[%clk 0:00:15]}  Rb1 {[%clk 0:00:12]} 80. Kh5 {[%clk 0:00:15]}  Rh1+ {[%clk 0:00:12]} 81. Rh4 {[%clk 0:00:16]}  Rg1 {[%clk 0:00:11]} 82. Rb4 {[%clk 0:00:15]}  Rxg3 {[%clk 0:00:07]} 83. Rb7+ {[%clk 0:00:15]}  Kf8 {[%clk 0:00:08]} 84. Kh6 {[%clk 0:00:14]}  Rg1 {[%clk 0:00:07]} 85. Rb8+ {[%clk 0:00:14]}  Kf7 {[%clk 0:00:07]} 86. Rb7+ {[%clk 0:00:14]}  Kf8 {[%clk 0:00:08]} 87. Kg6 {[%clk 0:00:14]}  Rg2 {[%clk 0:00:06]} 88. Rb8+ {[%clk 0:00:15]}  Ke7 {[%clk 0:00:07]} 89. Rh8 {[%clk 0:00:12]}  Rg1 {[%clk 0:00:06]} 90. Rh5 {[%clk 0:00:11]}  Ke6 {[%clk 0:00:06]} 91. Rh2 {[%clk 0:00:11]}  Ke7 {[%clk 0:00:05]} 92. Rf2 {[%clk 0:00:11]}  Rg3 {[%clk 0:00:04]} 93. Kh6 {[%clk 0:00:11]} 1-0


[Site "https://www.chess.com"]

[Event "Titled Tuesday Blitz August 31 2021"]
[White "Zubov, Alexander"]
[Black "Mirzoev, Azer"]
[WhiteFideId "14109409"]
[BlackFideId "13400304"]
[WhiteElo "2740"]
[BlackElo "2525"]
[Result "1-0"]
[Round "03"]
[TimeControl "180+1"]
[Date "2021.08.31"]
[WhiteClock "0:00:02"]
[BlackClock "0:00:01"]

1. e4 {[%clk 0:03:00]}  c6 {[%clk 0:02:58]} 2. d4 {[%clk 0:03:00]}  d5 {[%clk 0:02:59]} 3. e5 {[%clk 0:03:00]}  Bf5 {[%clk 0:02:59]} 4. Nf3 {[%clk 0:03:00]}  e6 {[%clk 0:02:59]} 5. Be2 {[%clk 0:03:01]}  Nd7 {[%clk 0:02:58]} 6. O-O {[%clk 0:03:00]}  h6 {[%clk 0:02:58]} 7. Nbd2 {[%clk 0:03:00]}  Ne7 {[%clk 0:02:56]} 8. Nb3 {[%clk 0:02:59]}  Bh7 {[%clk 0:02:55]} 9. Re1 {[%clk 0:02:58]}  Ng6 {[%clk 0:02:52]} 10. c3 {[%clk 0:02:55]}  Be7 {[%clk 0:02:52]} 11. Bd3 {[%clk 0:02:55]}  O-O {[%clk 0:02:51]} 12. g3 {[%clk 0:02:42]}  Re8 {[%clk 0:02:48]} 13. h4 {[%clk 0:02:41]}  Rc8 {[%clk 0:02:45]} 14. h5 {[%clk 0:02:38]}  Ngf8 {[%clk 0:02:45]} 15. Bf4 {[%clk 0:02:27]}  c5 {[%clk 0:02:37]} 16. Bxh7+ {[%clk 0:02:20]}  Nxh7 {[%clk 0:02:36]} 17. dxc5 {[%clk 0:02:17]}  Nxc5 {[%clk 0:02:36]} 18. Nbd4 {[%clk 0:02:17]}  a6 {[%clk 0:02:32]} 19. a4 {[%clk 0:02:08]}  Ng5 {[%clk 0:02:29]} 20. Kg2 {[%clk 0:01:59]}  Nge4 {[%clk 0:02:15]} 21. Re3 {[%clk 0:01:54]}  Nd7 {[%clk 0:02:04]} 22. a5 {[%clk 0:01:48]}  Bc5 {[%clk 0:01:50]} 23. Re2 {[%clk 0:01:43]}  f6 {[%clk 0:01:42]} 24. Qb3 {[%clk 0:01:11]}  fxe5 {[%clk 0:01:28]} 25. Nxe5 {[%clk 0:01:10]}  Nxe5 {[%clk 0:01:27]} 26. Bxe5 {[%clk 0:01:10]}  Qd7 {[%clk 0:01:11]} 27. Rae1 {[%clk 0:00:59]}  Qf7 {[%clk 0:00:42]} 28. g4 {[%clk 0:00:32]}  Ba7 {[%clk 0:00:40]} 29. f3 {[%clk 0:00:30]}  Nc5 {[%clk 0:00:39]} 30. Qc2 {[%clk 0:00:29]}  Nd7 {[%clk 0:00:35]} 31. Qd2 {[%clk 0:00:25]}  Nxe5 {[%clk 0:00:23]} 32. Rxe5 {[%clk 0:00:25]}  Bxd4 {[%clk 0:00:23]} 33. Qxd4 {[%clk 0:00:24]}  Rc4 {[%clk 0:00:17]} 34. Qe3 {[%clk 0:00:24]}  Rf4 {[%clk 0:00:10]} 35. Rxd5 {[%clk 0:00:18]}  Rf6 {[%clk 0:00:05]} 36. Re5 {[%clk 0:00:14]}  Rd8 {[%clk 0:00:05]} 37. Rxe6 {[%clk 0:00:13]}  Rxe6 {[%clk 0:00:04]} 38. Qxe6 {[%clk 0:00:13]}  Rd2+ {[%clk 0:00:05]} 39. Kg3 {[%clk 0:00:13]}  Qxe6 {[%clk 0:00:04]} 40. Rxe6 {[%clk 0:00:13]}  Rxb2 {[%clk 0:00:05]} 41. Re5 {[%clk 0:00:06]}  Rb3 {[%clk 0:00:05]} 42. Rc5 {[%clk 0:00:06]}  Kf7 {[%clk 0:00:04]} 43. Kf4 {[%clk 0:00:07]}  Kf6 {[%clk 0:00:03]} 44. Ke4 {[%clk 0:00:06]}  Rb1 {[%clk 0:00:02]} 45. f4 {[%clk 0:00:06]}  Re1+ {[%clk 0:00:02]} 46. Kf3 {[%clk 0:00:06]}  Rf1+ {[%clk 0:00:02]} 47. Ke3 {[%clk 0:00:07]}  Rg1 {[%clk 0:00:02]} 48. Rc7 {[%clk 0:00:05]}  Rxg4 {[%clk 0:00:01]} 49. Rxb7 {[%clk 0:00:06]}  Rg3+ {[%clk 0:00:02]} 50. Kd4 {[%clk 0:00:05]}  Rg4 {[%clk 0:00:02]} 51. Ke4 {[%clk 0:00:05]}  Rg3 {[%clk 0:00:02]} 52. Rb6+ {[%clk 0:00:06]}  Kf7 {[%clk 0:00:02]} 53. c4 {[%clk 0:00:06]}  Rc3 {[%clk 0:00:02]} 54. Kd5 {[%clk 0:00:06]}  Rd3+ {[%clk 0:00:02]} 55. Kc6 {[%clk 0:00:06]}  Rh3 {[%clk 0:00:02]} 56. Rxa6 {[%clk 0:00:05]}  Rxh5 {[%clk 0:00:02]} 57. Ra8 {[%clk 0:00:04]}  Rf5 {[%clk 0:00:02]} 58. a6 {[%clk 0:00:05]}  h5 {[%clk 0:00:01]} 59. c5 {[%clk 0:00:03]}  Rxf4 {[%clk 0:00:01]} 60. Ra7+ {[%clk 0:00:02]}  Kf6 {[%clk 0:00:01]} 61. Rb7 {[%clk 0:00:02]} 1-0


[Site "https://www.chess.com"]